[Event "Live Chess"]
[Site "Chess.com"]
[Date "2023.05.21"]
[Round "-"]
[White "HadesLearmonth"]
[Black "lateforthesky"]
[Result "0-1"]
[WhiteElo "1210"]
[BlackElo "2098"]
[TimeControl "300"]
[EndTime "7:28:08 PDT"]
[Termination "lateforthesky won by checkmate"]

1. e4 {[%clk 0:04:59.1]} 1... c5 {[%clk 0:04:55.9]} 2. Nf3 {[%clk 0:04:57.9]}
2... Nf6 {[%clk 0:04:54.3]} 3. d4 {[%clk 0:04:55.5]} 3... Nxe4 {[%clk 0:04:52]}
4. dxc5 {[%clk 0:04:48.7]} 4... Nxc5 {[%clk 0:04:50.1]} 5. Be3 {[%clk 0:04:44]}
5... Ne6 {[%clk 0:04:48.9]} 6. Nc3 {[%clk 0:04:40.5]} 6... g6 {[%clk 0:04:47.3]}
7. Bc4 {[%clk 0:04:39]} 7... Bg7 {[%clk 0:04:41]} 8. O-O {[%clk 0:04:36.8]} 8...
d6 {[%clk 0:04:37]} 9. Qd5 {[%clk 0:04:29.1]} 9... O-O {[%clk 0:04:27.9]} 10.
Rad1 {[%clk 0:04:20.3]} 10... Nc6 {[%clk 0:04:24.5]} 11. Ne4 {[%clk 0:04:19.1]}
11... Qa5 {[%clk 0:04:04.4]} 12. c3 {[%clk 0:04:06.6]} 12... Qxd5 {[%clk
0:04:01.7]} 13. Bxd5 {[%clk 0:04:05.6]} 13... Bd7 {[%clk 0:03:51.4]} 14. Bd4
{[%clk 0:04:01.3]} 14... Nexd4 {[%clk 0:03:48.9]} 15. cxd4 {[%clk 0:03:56]}
15... Rac8 {[%clk 0:03:41.3]} 16. a3 {[%clk 0:03:50.4]} 16... b6 {[%clk
0:03:39.6]} 17. b4 {[%clk 0:03:48.4]} 17... Rc7 {[%clk 0:03:25.1]} 18. b5 {[%clk
0:03:43.6]} 18... Na5 {[%clk 0:03:23.3]} 19. a4 {[%clk 0:03:42.4]} 19... h6
{[%clk 0:03:19.1]} 20. Rc1 {[%clk 0:03:38.1]} 20... Rfc8 {[%clk 0:03:18]} 21.
Rxc7 {[%clk 0:03:35.7]} 21... Rxc7 {[%clk 0:03:17.4]} 22. h3 {[%clk 0:03:23.4]}
22... Bf5 {[%clk 0:03:15.9]} 23. Ned2 {[%clk 0:03:15.4]} 23... Rc2 {[%clk
0:03:03.9]} 24. Nb3 {[%clk 0:03:07.9]} 24... Nxb3 {[%clk 0:02:58.9]} 25. Bxb3
{[%clk 0:03:06.9]} 25... Rc3 {[%clk 0:02:57.8]} 26. Bd5 {[%clk 0:03:03.7]} 26...
e6 {[%clk 0:02:52.2]} 27. Bc6 {[%clk 0:03:00.7]} 27... d5 {[%clk 0:02:47]} 28.
Ne5 {[%clk 0:02:58.1]} 28... Bxe5 {[%clk 0:02:36.4]} 29. dxe5 {[%clk 0:02:58]}
29... h5 {[%clk 0:02:34.6]} 30. f3 {[%clk 0:02:55.7]} 30... Rc4 {[%clk
0:02:26.4]} 31. Ra1 {[%clk 0:02:46.7]} 31... h4 {[%clk 0:02:22.4]} 32. Kf2
{[%clk 0:02:45.1]} 32... Rc2+ {[%clk 0:02:20.6]} 33. Ke3 {[%clk 0:02:43.7]}
33... Rxg2 {[%clk 0:02:19.1]} 34. a5 {[%clk 0:02:41.4]} 34... Bxh3 {[%clk
0:02:14.6]} 35. axb6 {[%clk 0:02:40.2]} 35... axb6 {[%clk 0:02:12.7]} 36. Ra6
{[%clk 0:02:37.6]} 36... Rb2 {[%clk 0:02:08.9]} 37. Rxb6 {[%clk 0:02:36.1]}
37... Bg2 {[%clk 0:02:07.8]} 38. Rb8+ {[%clk 0:02:28.9]} 38... Kg7 {[%clk
0:02:05.6]} 39. b6 {[%clk 0:02:27.5]} 39... h3 {[%clk 0:02:04.7]} 40. b7 {[%clk
0:01:59.3]} 40... h2 {[%clk 0:02:03.4]} 41. Rc8 {[%clk 0:01:48.6]} 41... h1=Q
{[%clk 0:02:01.5]} 42. b8=Q {[%clk 0:01:43.1]} 42... Qc1+ {[%clk 0:01:48.8]} 43.
Kd4 {[%clk 0:01:33.4]} 43... Qc4+ {[%clk 0:01:43.4]} 44. Ke3 {[%clk 0:01:29.1]}
44... Re2# {[%clk 0:01:41.9]} 0-1

[Event "Live Chess"]
[Site "Chess.com"]
[Date "2023.05.21"]
[Round "-"]
[White "martinsmartin63"]
[Black "McSlash1"]
[Result "0-1"]
[WhiteElo "751"]
[BlackElo "2014"]
[TimeControl "300"]
[EndTime "7:28:15 PDT"]
[Termination "McSlash1 won by resignation"]

1. e4 {[%clk 0:04:57.2]} 1... c5 {[%clk 0:04:59.4]} 2. Nf3 {[%clk 0:04:52.1]}
2... d6 {[%clk 0:04:56]} 3. d4 {[%clk 0:04:49.7]} 3... cxd4 {[%clk 0:04:55.9]}
4. Nxd4 {[%clk 0:04:47]} 4... Nf6 {[%clk 0:04:55.4]} 5. e5 {[%clk 0:04:42.8]}
5... dxe5 {[%clk 0:04:54.1]} 6. Bb5+ {[%clk 0:04:35.3]} 6... Bd7 {[%clk
0:04:53]} 7. Qd3 {[%clk 0:04:31.8]} 7... exd4 {[%clk 0:04:50.7]} 8. Bxd7+ {[%clk
0:04:25.5]} 8... Qxd7 {[%clk 0:04:50.6]} 9. O-O {[%clk 0:04:18.1]} 9... e5
{[%clk 0:04:48.3]} 10. Re1 {[%clk 0:04:09.3]} 10... Bd6 {[%clk 0:04:39.9]} 11.
Bg5 {[%clk 0:04:05.4]} 11... O-O {[%clk 0:04:39.2]} 12. Qd2 {[%clk 0:04:01.6]}
12... Qf5 {[%clk 0:04:34.3]} 13. Bh6 {[%clk 0:03:56.5]} 13... gxh6 {[%clk
0:04:26.1]} 14. Qd3 {[%clk 0:03:48.5]} 14... e4 {[%clk 0:04:22.5]} 15. Qh3
{[%clk 0:03:42.3]} 15... Qxh3 {[%clk 0:04:19.8]} 16. gxh3 {[%clk 0:03:39.5]}
16... e3 {[%clk 0:04:15.1]} 17. fxe3 {[%clk 0:03:36.5]} 17... dxe3 {[%clk
0:04:15]} 18. Rxe3 {[%clk 0:03:33.3]} 18... Bc5 {[%clk 0:04:14.6]} 19. Kf2
{[%clk 0:03:24.1]} 19... Re8 {[%clk 0:04:13.2]} 0-1

[Event "Live Chess"]
[Site "Chess.com"]
[Date "2023.05.21"]
[Round "-"]
[White "Dark_Night123"]
[Black "Tiltador"]
[Result "0-1"]
[WhiteElo "1542"]
[BlackElo "874"]
[TimeControl "300"]
[EndTime "7:28:16 PDT"]
[Termination "Tiltador won by resignation"]

1. e4 {[%clk 0:04:59.3]} 1... e5 {[%clk 0:04:57.9]} 2. Nf3 {[%clk 0:04:58.7]}
2... d6 {[%clk 0:04:56.4]} 3. d4 {[%clk 0:04:57.7]} 3... f6 {[%clk 0:04:55.2]}
4. dxe5 {[%clk 0:04:56.9]} 4... fxe5 {[%clk 0:04:53.7]} 5. Bc4 {[%clk
0:04:54.4]} 5... Nc6 {[%clk 0:04:51.7]} 6. Nc3 {[%clk 0:04:52.9]} 6... Nge7
{[%clk 0:04:50.4]} 7. O-O {[%clk 0:04:52.1]} 7... Bg4 {[%clk 0:04:42.3]} 8. h3
{[%clk 0:04:50.8]} 8... Bxf3 {[%clk 0:04:41.1]} 9. Qxf3 {[%clk 0:04:49.5]} 9...
Kd7 {[%clk 0:04:25.3]} 10. Nd5 {[%clk 0:04:44.3]} 10... Nxd5 {[%clk 0:04:18.1]}
11. Bxd5 {[%clk 0:04:44.2]} 11... Kc8 {[%clk 0:04:11.9]} 12. Bxc6 {[%clk
0:04:35.4]} 12... bxc6 {[%clk 0:04:10.2]} 13. Qc3 {[%clk 0:04:32.9]} 13... Qd7
{[%clk 0:04:07.3]} 14. Be3 {[%clk 0:04:31.3]} 14... Be7 {[%clk 0:04:03]} 15.
Rad1 {[%clk 0:04:29.4]} 15... Bf6 {[%clk 0:04:00.9]} 16. Qa5 {[%clk 0:04:27.6]}
16... Rb8 {[%clk 0:03:54.3]} 17. Rde1 {[%clk 0:04:27.5]} 17... Rb7 {[%clk
0:03:51.5]} 18. Rd1 {[%clk 0:04:25.9]} 18... Rg8 {[%clk 0:03:45.6]} 19. Rd3
{[%clk 0:04:24.8]} 19... h6 {[%clk 0:03:44.2]} 20. Rb3 {[%clk 0:04:24.1]} 20...
c5 {[%clk 0:03:16.6]} 21. Qa6 {[%clk 0:04:20.5]} 21... c6 {[%clk 0:02:42.4]} 22.
Rd1 {[%clk 0:04:13.1]} 22... g5 {[%clk 0:02:35.6]} 23. Bxc5 {[%clk 0:04:12.1]}
23... d5 {[%clk 0:02:24.4]} 24. Bxa7 {[%clk 0:03:59.9]} 24... d4 {[%clk
0:02:13.3]} 25. c3 {[%clk 0:03:58.3]} 25... Qc7 {[%clk 0:01:58.7]} 26. cxd4
{[%clk 0:03:53.8]} 26... exd4 {[%clk 0:01:52.9]} 27. Rxd4 {[%clk 0:03:52.3]}
27... Bxd4 {[%clk 0:01:49.1]} 28. Bxd4 {[%clk 0:03:50.6]} 28... Rd8 {[%clk
0:01:42.5]} 29. Be3 {[%clk 0:03:48.2]} 29... Rd1+ {[%clk 0:01:39.9]} 30. Qf1
{[%clk 0:03:43.6]} 30... Rxf1+ {[%clk 0:01:38.1]} 31. Kxf1 {[%clk 0:03:43.5]}
31... Rxb3 {[%clk 0:01:36.1]} 32. axb3 {[%clk 0:03:42.4]} 0-1

[Event "Live Chess"]
[Site "Chess.com"]
[Date "2023.05.21"]
[Round "-"]
[White "ossie57"]
[Black "BillythekidFellowes"]
[Result "0-1"]
[WhiteElo "1836"]
[BlackElo "2094"]
[TimeControl "300"]
[EndTime "7:28:20 PDT"]
[Termination "BillythekidFellowes won by resignation"]

1. d4 {[%clk 0:04:57.3]} 1... Nc6 {[%clk 0:04:59.9]} 2. Nc3 {[%clk 0:04:56.4]}
2... d5 {[%clk 0:04:58.5]} 3. Bf4 {[%clk 0:04:55.4]} 3... a6 {[%clk 0:04:54.5]}
4. e3 {[%clk 0:04:52.2]} 4... Nf6 {[%clk 0:04:53.5]} 5. h3 {[%clk 0:04:48.4]}
5... g6 {[%clk 0:04:50.3]} 6. Nf3 {[%clk 0:04:42.1]} 6... Bg7 {[%clk 0:04:44.9]}
7. Ne5 {[%clk 0:04:38.1]} 7... Nxe5 {[%clk 0:04:41.3]} 8. Bxe5 {[%clk
0:04:36.3]} 8... O-O {[%clk 0:04:39.7]} 9. Be2 {[%clk 0:04:32.5]} 9... c5 {[%clk
0:04:36.9]} 10. O-O {[%clk 0:04:30]} 10... e6 {[%clk 0:04:29]} 11. dxc5 {[%clk
0:04:27.3]} 11... Ne8 {[%clk 0:03:52.5]} 12. Bxg7 {[%clk 0:04:25.4]} 12... Nxg7
{[%clk 0:03:52.4]} 13. b4 {[%clk 0:04:24]} 13... Qf6 {[%clk 0:03:47.5]} 14. Qd4
{[%clk 0:04:21]} 14... Qe7 {[%clk 0:03:43.1]} 15. e4 {[%clk 0:04:06.3]} 15...
dxe4 {[%clk 0:03:37.1]} 16. Nxe4 {[%clk 0:04:03.5]} 16... Nf5 {[%clk 0:03:33.1]}
17. Nf6+ {[%clk 0:03:59.5]} 17... Kg7 {[%clk 0:03:17.2]} 18. Nh5+ {[%clk
0:03:45.8]} 18... Kg8 {[%clk 0:03:14.4]} 19. Nf6+ {[%clk 0:03:43.2]} 19... Kh8
{[%clk 0:03:12.6]} 20. Nh5+ {[%clk 0:03:42.1]} 20... Nxd4 {[%clk 0:03:08.6]} 0-1

[Event "Live Chess"]
[Site "Chess.com"]
[Date "2023.05.21"]
[Round "-"]
[White "SupremeTactician"]
[Black "hturner40"]
[Result "0-1"]
[WhiteElo "2205"]
[BlackElo "1790"]
[TimeControl "300"]
[EndTime "7:28:30 PDT"]
[Termination "hturner40 won by resignation"]

1. e4 {[%clk 0:04:59.9]} 1... Nc6 {[%clk 0:04:57.9]} 2. d4 {[%clk 0:04:59.1]}
2... e5 {[%clk 0:04:57.1]} 3. d5 {[%clk 0:04:58.1]} 3... Nce7 {[%clk 0:04:55.9]}
4. c4 {[%clk 0:04:58]} 4... Ng6 {[%clk 0:04:54.9]} 5. Nc3 {[%clk 0:04:57.9]}
5... Bc5 {[%clk 0:04:52.7]} 6. Bd3 {[%clk 0:04:57]} 6... Nf6 {[%clk 0:04:51.2]}
7. Nge2 {[%clk 0:04:56.3]} 7... Ng4 {[%clk 0:04:49.4]} 8. O-O {[%clk 0:04:55.1]}
8... Qh4 {[%clk 0:04:47.4]} 9. h3 {[%clk 0:04:54.6]} 9... Nxf2 {[%clk
0:04:45.7]} 10. Rxf2 {[%clk 0:04:54.5]} 10... Qxf2+ {[%clk 0:04:44.4]} 11. Kh1
{[%clk 0:04:54.2]} 11... Nh4 {[%clk 0:04:43]} 12. Qg1 {[%clk 0:04:48.3]} 12...
d6 {[%clk 0:04:40.3]} 13. Qxf2 {[%clk 0:04:46.1]} 13... Bxf2 {[%clk 0:04:38.4]}
14. g3 {[%clk 0:04:37.8]} 14... Nf3 {[%clk 0:03:53]} 15. Kg2 {[%clk 0:04:36.6]}
15... Ne1+ {[%clk 0:03:51.8]} 16. Kxf2 {[%clk 0:04:36.5]} 16... Nxd3+ {[%clk
0:03:50.8]} 17. Ke3 {[%clk 0:04:36.4]} 17... Nb4 {[%clk 0:03:44.4]} 18. Kd2
{[%clk 0:04:31.5]} 18... O-O {[%clk 0:03:39.9]} 19. a3 {[%clk 0:04:30]} 19...
Na6 {[%clk 0:03:38.3]} 20. h4 {[%clk 0:04:29.8]} 20... f5 {[%clk 0:03:35.9]} 21.
b4 {[%clk 0:04:27.4]} 21... fxe4 {[%clk 0:03:29]} 22. Nxe4 {[%clk 0:04:27.3]}
22... Bg4 {[%clk 0:03:14.9]} 23. N2c3 {[%clk 0:04:20.9]} 23... Rf1 {[%clk
0:03:10.1]} 24. Bb2 {[%clk 0:04:16.7]} 24... Raf8 {[%clk 0:03:06.6]} 25. Re1
{[%clk 0:04:12.9]} 25... Rxe1 {[%clk 0:02:58.2]} 26. Kxe1 {[%clk 0:04:12.8]}
26... Rf3 {[%clk 0:02:43.8]} 27. Kd2 {[%clk 0:04:05.9]} 27... Bf5 {[%clk
0:02:33.3]} 28. Ke2 {[%clk 0:04:02.4]} 28... Bxe4 {[%clk 0:02:30.8]} 29. Nxe4
{[%clk 0:04:02.3]} 29... Rb3 {[%clk 0:02:28.8]} 30. Bc3 {[%clk 0:04:01.5]} 30...
Rxa3 {[%clk 0:02:25.8]} 31. b5 {[%clk 0:04:00]} 31... Nc5 {[%clk 0:02:20.3]} 32.
Nxc5 {[%clk 0:03:59.3]} 32... dxc5 {[%clk 0:02:17]} 33. Bxe5 {[%clk 0:03:58.4]}
33... Ra4 {[%clk 0:02:08]} 34. Bxc7 {[%clk 0:03:57.3]} 34... Rxc4 {[%clk
0:02:07]} 35. d6 {[%clk 0:03:56.6]} 35... Rd4 {[%clk 0:02:06.1]} 36. Ke3 {[%clk
0:03:55.7]} 36... Kf7 {[%clk 0:02:04.3]} 37. Bb8 {[%clk 0:03:55]} 37... a6
{[%clk 0:02:01.6]} 38. bxa6 {[%clk 0:03:54.5]} 38... bxa6 {[%clk 0:02:00.2]} 39.
Ba7 {[%clk 0:03:54.4]} 39... Rxd6 {[%clk 0:01:57.3]} 40. Bxc5 {[%clk 0:03:54]}
40... Rc6 {[%clk 0:01:55.5]} 41. Bb4 {[%clk 0:03:53.4]} 41... Rc8 {[%clk
0:01:52.8]} 42. Kf4 {[%clk 0:03:52.5]} 42... Ra8 {[%clk 0:01:51.3]} 43. Ba5
{[%clk 0:03:51.2]} 43... Ke6 {[%clk 0:01:48.3]} 44. g4 {[%clk 0:03:50.1]} 44...
Kd5 {[%clk 0:01:42.8]} 45. Kf5 {[%clk 0:03:49.4]} 45... Rf8+ {[%clk 0:01:35]}
46. Kg5 {[%clk 0:03:48.6]} 46... Kc6 {[%clk 0:01:32.1]} 47. Bc3 {[%clk 0:03:47]}
47... Rf7 {[%clk 0:01:27.7]} 48. h5 {[%clk 0:03:45.4]} 48... Kb5 {[%clk
0:01:24.4]} 49. Kh4 {[%clk 0:03:44.7]} 49... a5 {[%clk 0:01:23]} 50. g5 {[%clk
0:03:44.2]} 50... a4 {[%clk 0:01:18.8]} 51. g6 {[%clk 0:03:43.6]} 51... hxg6
{[%clk 0:01:16.2]} 52. hxg6 {[%clk 0:03:43.5]} 52... Rc7 {[%clk 0:01:14.2]} 53.
Kg5 {[%clk 0:03:43.1]} 0-1

[Event "Live Chess"]
[Site "Chess.com"]
[Date "2023.05.21"]
[Round "-"]
[White "TheSmoulderingMaster"]
[Black "Long1968"]
[Result "1-0"]
[WhiteElo "1656"]
[BlackElo "956"]
[TimeControl "300"]
[EndTime "7:28:33 PDT"]
[Termination "TheSmoulderingMaster won on time"]

1. e4 {[%clk 0:04:58.7]} 1... e6 {[%clk 0:04:57.5]} 2. d4 {[%clk 0:04:57]} 2...
d5 {[%clk 0:04:56.3]} 3. Nc3 {[%clk 0:04:56.3]} 3... Bb4 {[%clk 0:04:52.3]} 4.
e5 {[%clk 0:04:54.7]} 4... c5 {[%clk 0:04:49.9]} 5. a3 {[%clk 0:04:53.4]} 5...
cxd4 {[%clk 0:04:47.3]} 6. Qxd4 {[%clk 0:04:51.2]} 6... Nc6 {[%clk 0:04:41.6]}
7. Bb5 {[%clk 0:04:48.8]} 7... Bd7 {[%clk 0:04:33.9]} 8. Bxc6 {[%clk 0:04:46.1]}
8... Bxc3+ {[%clk 0:04:29]} 9. Qxc3 {[%clk 0:04:44.7]} 9... Bxc6 {[%clk
0:04:24.9]} 10. Qg3 {[%clk 0:04:42.3]} 10... g6 {[%clk 0:04:13.2]} 11. Nf3
{[%clk 0:04:39.5]} 11... Ne7 {[%clk 0:04:09.9]} 12. O-O {[%clk 0:04:36.6]} 12...
Nf5 {[%clk 0:04:06.1]} 13. Qg4 {[%clk 0:04:33.5]} 13... h5 {[%clk 0:03:59.6]}
14. Qb4 {[%clk 0:04:26.3]} 14... Qe7 {[%clk 0:03:46.8]} 15. Qa5 {[%clk
0:04:20.2]} 15... b6 {[%clk 0:03:20.5]} 16. Qc3 {[%clk 0:04:16]} 16... Rc8
{[%clk 0:03:13.1]} 17. Bg5 {[%clk 0:04:12.5]} 17... Qd7 {[%clk 0:03:04.8]} 18.
Bf6 {[%clk 0:04:08]} 18... O-O {[%clk 0:02:58.7]} 19. Qd2 {[%clk 0:04:03.5]}
19... d4 {[%clk 0:01:33.3]} 20. h3 {[%clk 0:03:57.4]} 20... Bxf3 {[%clk
0:01:24.5]} 21. gxf3 {[%clk 0:03:56]} 21... Qc6 {[%clk 0:01:10]} 22. Qf4 {[%clk
0:03:49.7]} 22... Qxc2 {[%clk 0:00:48.5]} 23. Kh2 {[%clk 0:03:46.5]} 23... Qxb2
{[%clk 0:00:15.9]} 24. Rae1 {[%clk 0:03:40.1]} 24... Rc2 {[%clk 0:00:05.9]} 25.
Bh4 {[%clk 0:03:36.1]} 1-0

[Event "Live Chess"]
[Site "Chess.com"]
[Date "2023.05.21"]
[Round "-"]
[White "RichardABates"]
[Black "manthanit"]
[Result "1-0"]
[WhiteElo "2144"]
[BlackElo "1097"]
[TimeControl "300"]
[EndTime "7:28:34 PDT"]
[Termination "RichardABates won by resignation"]

1. d4 {[%clk 0:04:59.2]} 1... e6 {[%clk 0:04:58.1]} 2. c4 {[%clk 0:04:56.7]}
2... d5 {[%clk 0:04:54.4]} 3. Nc3 {[%clk 0:04:54.9]} 3... c5 {[%clk 0:04:53.6]}
4. cxd5 {[%clk 0:04:53.1]} 4... exd5 {[%clk 0:04:52.8]} 5. e4 {[%clk 0:04:52]}
5... dxe4 {[%clk 0:04:48.4]} 6. Bc4 {[%clk 0:04:50.4]} 6... cxd4 {[%clk
0:04:47.1]} 7. Bf4 {[%clk 0:04:48.8]} 7... Bb4 {[%clk 0:04:41.5]} 8. Qb3 {[%clk
0:04:37.6]} 8... Qb6 {[%clk 0:04:39.2]} 9. Bxf7+ {[%clk 0:04:33.5]} 9... Kf8
{[%clk 0:04:27.6]} 10. O-O-O {[%clk 0:04:31.3]} 10... dxc3 {[%clk 0:04:15.7]}
11. bxc3 {[%clk 0:04:23.7]} 11... Bc5 {[%clk 0:04:00.5]} 12. Bg5 {[%clk
0:03:55.2]} 12... Nc6 {[%clk 0:03:23.2]} 13. Ne2 {[%clk 0:03:25.7]} 13... Nf6
{[%clk 0:03:12.6]} 14. Bxf6 {[%clk 0:03:18.7]} 14... gxf6 {[%clk 0:03:11.2]} 15.
Bh5 {[%clk 0:03:06.7]} 15... Ne5 {[%clk 0:03:04.4]} 16. Nf4 {[%clk 0:02:45.1]}
16... Qxb3 {[%clk 0:02:28.6]} 17. axb3 {[%clk 0:02:43.2]} 17... Bf5 {[%clk
0:02:26.3]} 18. g4 {[%clk 0:02:29.3]} 18... Bg6 {[%clk 0:02:22.8]} 19. Ne6+
{[%clk 0:02:23.4]} 19... Ke7 {[%clk 0:01:36.4]} 20. Nxc5 {[%clk 0:02:21.3]}
20... Bxh5 {[%clk 0:01:32.8]} 21. gxh5 {[%clk 0:02:19.1]} 21... b6 {[%clk
0:01:23.3]} 22. Nxe4 {[%clk 0:02:16.1]} 22... Rhd8 {[%clk 0:01:19.5]} 23. Ng3
{[%clk 0:02:10.8]} 23... Rxd1+ {[%clk 0:01:13.3]} 24. Rxd1 {[%clk 0:02:07.9]}
24... Rc8 {[%clk 0:01:10.7]} 25. f4 {[%clk 0:02:02]} 25... Rxc3+ {[%clk
0:01:03.2]} 26. Kb2 {[%clk 0:02:00.3]} 26... Re3 {[%clk 0:00:34.8]} 27. Nf5+
{[%clk 0:01:57.7]} 27... Ke6 {[%clk 0:00:30.8]} 28. Nxe3 {[%clk 0:01:56.5]} 1-0

[Event "Live Chess"]
[Site "Chess.com"]
[Date "2023.05.21"]
[Round "-"]
[White "GMHarry-youtube"]
[Black "peleus16"]
[Result "0-1"]
[WhiteElo "2043"]
[BlackElo "1752"]
[TimeControl "300"]
[EndTime "7:28:37 PDT"]
[Termination "peleus16 won on time"]

1. e4 {[%clk 0:04:51.1]} 1... d5 {[%clk 0:04:57.1]} 2. exd5 {[%clk 0:04:50.1]}
2... Qxd5 {[%clk 0:04:53.5]} 3. Nc3 {[%clk 0:04:49.3]} 3... Qa5 {[%clk
0:04:51.9]} 4. d4 {[%clk 0:04:48.6]} 4... Nf6 {[%clk 0:04:46.5]} 5. Nf3 {[%clk
0:04:47.9]} 5... Bf5 {[%clk 0:04:42.4]} 6. Bc4 {[%clk 0:04:46.4]} 6... e6 {[%clk
0:04:38.9]} 7. Ne5 {[%clk 0:04:45.3]} 7... Nbd7 {[%clk 0:04:33.7]} 8. Bd2 {[%clk
0:04:43.3]} 8... c6 {[%clk 0:04:17.1]} 9. O-O {[%clk 0:04:28.1]} 9... Be7 {[%clk
0:04:10.4]} 10. h4 {[%clk 0:04:14.1]} 10... O-O {[%clk 0:03:56.1]} 11. f3 {[%clk
0:03:57.9]} 11... Nxe5 {[%clk 0:03:43.3]} 12. dxe5 {[%clk 0:03:52.9]} 12... Qxe5
{[%clk 0:03:38.4]} 13. g4 {[%clk 0:03:51.1]} 13... Qg3+ {[%clk 0:03:31.6]} 14.
Kh1 {[%clk 0:03:48.8]} 14... Qh3+ {[%clk 0:03:28.8]} 15. Kg1 {[%clk 0:03:48]}
15... Qg3+ {[%clk 0:03:27.3]} 16. Kh1 {[%clk 0:01:02.3]} 16... Qh3+ {[%clk
0:03:24.8]} 17. Kg1 {[%clk 0:00:37.1]} 17... Bc5+ {[%clk 0:03:22.7]} 18. Rf2
{[%clk 0:00:32.3]} 18... Qg3+ {[%clk 0:03:16.8]} 19. Kh1 {[%clk 0:00:30.9]}
19... Bxf2 {[%clk 0:03:11.4]} 20. Qf1 {[%clk 0:00:29.7]} 20... Qxf3+ {[%clk
0:03:02.6]} 21. Qg2 {[%clk 0:00:28.1]} 21... Qxg2+ {[%clk 0:02:37]} 22. Kxg2
{[%clk 0:00:28]} 22... Nxg4 {[%clk 0:02:31.6]} 23. Be2 {[%clk 0:00:25.1]} 23...
Bxh4 {[%clk 0:02:26.2]} 24. Rh1 {[%clk 0:00:22.8]} 24... Bf6 {[%clk 0:02:19.4]}
25. Bd3 {[%clk 0:00:17.4]} 25... Bxd3 {[%clk 0:02:13.6]} 26. cxd3 {[%clk
0:00:17.3]} 26... Ne5 {[%clk 0:02:08.5]} 27. Rh3 {[%clk 0:00:16.5]} 27... Rad8
{[%clk 0:02:02.1]} 28. Ne4 {[%clk 0:00:14.7]} 28... Rxd3 {[%clk 0:01:53.4]} 29.
Rh1 {[%clk 0:00:12]} 29... Ng6 {[%clk 0:01:41.6]} 30. Rf1 {[%clk 0:00:10.2]}
30... Bd4 {[%clk 0:01:28.8]} 31. Bc3 {[%clk 0:00:06.6]} 31... Bxc3 {[%clk
0:01:24.4]} 32. Nxc3 {[%clk 0:00:06.5]} 32... Rd2+ {[%clk 0:01:21.9]} 33. Rf2
{[%clk 0:00:05.4]} 33... Rxf2+ {[%clk 0:01:19.2]} 34. Kxf2 {[%clk 0:00:05.3]}
34... Rd8 {[%clk 0:01:16.2]} 35. Ke2 {[%clk 0:00:05.2]} 35... Rd4 {[%clk
0:01:08.7]} 36. Nd1 {[%clk 0:00:05.1]} 36... Rh4 {[%clk 0:01:05.3]} 37. Nf2
{[%clk 0:00:03.4]} 37... Rh2 {[%clk 0:01:02.5]} 38. Kf1 {[%clk 0:00:03.3]} 38...
Nf4 {[%clk 0:00:54]} 39. b4 {[%clk 0:00:01.2]} 39... e5 {[%clk 0:00:49.7]} 40.
Nh1 {[%clk 0:00:01.1]} 40... Rxh1+ {[%clk 0:00:46.4]} 41. Kf2 {[%clk 0:00:01]}
41... Ra1 {[%clk 0:00:42.9]} 42. Kg3 {[%clk 0:00:00.9]} 42... Rxa2 {[%clk
0:00:38.4]} 43. Kg4 {[%clk 0:00:00.8]} 43... Rb2 {[%clk 0:00:35.6]} 44. Kf5
{[%clk 0:00:00.7]} 44... Rxb4 {[%clk 0:00:32.9]} 45. Kg5 {[%clk 0:00:00.6]}
45... a5 {[%clk 0:00:29.9]} 46. Kf5 {[%clk 0:00:00.5]} 46... a4 {[%clk
0:00:28.4]} 47. Kg5 {[%clk 0:00:00.4]} 47... a3 {[%clk 0:00:26.9]} 48. Kf5
{[%clk 0:00:00.3]} 48... a2 {[%clk 0:00:25.5]} 49. Kg5 {[%clk 0:00:00.2]} 49...
a1=Q {[%clk 0:00:23.6]} 50. Kf5 {[%clk 0:00:00.1]} 50... Qd4 {[%clk 0:00:20.6]}
0-1